fUST/lending_fUST_20250318
["ID","MTS","AMOUNT","RATE_DAILY","PERIOD"]
[356320662,1742256641383,-500.0,8.219e-05,2]
[356320663,1742256641392,-575.44,8.219e-05,2]
[356320664,1742256641402,-2513.8,8.219e-05,2]
[356320665,1742256641411,-1023.8300543,8.219e-05,2]
[356320666,1742256641421,-500.0,8.219e-05,2]
[356320667,1742256641430,-1115.83,8.219e-05,2]
[356320668,1742256641442,-500.0,8.219e-05,2]
[356320669,1742256641451,-500.0,8.219e-05,2]
[356320670,1742256641461,-500.0,8.219e-05,2]
[356320671,1742256641470,-500.0,8.219e-05,2]
[356320672,1742256641479,-829.42412939,8.219e-05,2]
[356320683,1742256643425,-500.0,8.219e-05,2]
[356320687,1742256704394,-150.0,7.819e-05,2]
[356320731,1742257832327,-150.0,7.809e-05,2]
[356320732,1742257832338,-5074.68745392,7.819e-05,2]
[356320733,1742257832549,-300.0,8.217e-05,2]
[356320734,1742257832559,-453.11422692,8.218e-05,2]
[356320735,1742257832569,-500.0,8.218e-05,2]
[356320736,1742257832579,-500.0,8.218e-05,2]
[356320737,1742257832589,-500.0,8.218e-05,2]
[356320738,1742257832598,-500.0,8.218e-05,2]
[356320739,1742257832608,-500.0,8.218e-05,2]
[356320740,1742257832617,-500.0,8.218e-05,2]
[356320741,1742257832627,-500.0,8.218e-05,2]
[356320742,1742257832637,-405.47625823,8.218e-05,2]
[356320743,1742257832647,-500.0,8.219e-05,2]
[356320744,1742257832656,-506.10342789,8.219e-05,2]
[356320745,1742257832665,-500.0,8.219e-05,2]
[356320746,1742257832675,-500.0,8.219e-05,2]
[356320747,1742257832684,-500.0,8.219e-05,2]
[356320748,1742257832693,-500.0,8.219e-05,2]
[356320749,1742257832703,-500.0,8.219e-05,2]
[356320750,1742257832712,-500.0,8.219e-05,2]
[356320751,1742257832721,-500.0,8.219e-05,2]
[356320752,1742257832731,-500.0,8.219e-05,2]
[356320753,1742257832740,-500.0,8.219e-05,2]
[356320754,1742257832749,-421.8,8.219e-05,2]
[356320755,1742257832759,-500.0,8.219e-05,2]
[356320756,1742257832768,-500.0,8.219e-05,2]
[356320757,1742257832777,-556.77593907,8.219e-05,2]
[356320758,1742257832787,-500.0,8.219e-05,2]
[356320759,1742257832796,-500.0,8.219e-05,2]
[356320760,1742257832805,-500.0,8.219e-05,2]
[356320761,1742257832815,-500.0,8.219e-05,2]
[356320762,1742257832824,-500.0,8.219e-05,2]
[356320763,1742257832834,-500.0,8.219e-05,2]
[356320764,1742257832844,-500.0,8.219e-05,2]
[356320765,1742257832854,-820.42,8.219e-05,2]
[356320766,1742257832863,-500.0,8.219e-05,2]
[356320767,1742257832874,-500.0,8.219e-05,2]
[356320768,1742257832883,-500.0,8.219e-05,2]
[356320769,1742257832893,-500.0,8.219e-05,2]
[356320770,1742257832903,-500.0,8.219e-05,2]
[356320771,1742257832912,-502.21391993,8.219e-05,2]
[356320772,1742257832922,-500.0,8.219e-05,2]
[356320773,1742257832931,-500.0,8.219e-05,2]
[356320774,1742257832940,-500.0,8.219e-05,2]
[356320775,1742257832950,-500.0,8.219e-05,2]
[356320776,1742257832959,-500.0,8.219e-05,2]
[356320777,1742257832968,-228.1,8.219e-05,2]
[356320778,1742257832978,-500.0,8.219e-05,2]
[356320779,1742257832987,-500.0,8.219e-05,2]
[356320780,1742257832996,-500.0,8.219e-05,2]
[356320781,1742257833006,-758.47,8.219e-05,2]
[356320782,1742257833016,-500.0,8.219e-05,2]
[356320783,1742257833029,-883.62,8.219e-05,2]
[356320784,1742257833039,-507.82,8.219e-05,2]
[356320785,1742257833049,-500.0,8.219e-05,2]
[356320786,1742257833059,-500.0,8.219e-05,2]
[356320787,1742257833070,-500.0,8.219e-05,2]
[356320788,1742257833079,-500.0,8.219e-05,2]
[356320789,1742257833089,-500.0,8.219e-05,2]
[356320790,1742257833098,-500.0,8.219e-05,2]
[356320791,1742257833109,-500.0,8.219e-05,2]
[356320792,1742257833119,-407.17,8.219e-05,2]
[356320793,1742257833129,-500.0,8.219e-05,2]
[356320794,1742257833139,-526.73,8.219e-05,2]
[356320795,1742257833149,-500.0,8.219e-05,2]
[356320796,1742257833159,-500.0,8.219e-05,2]
[356320797,1742257833168,-500.0,8.219e-05,2]
[356320798,1742257833178,-500.0,8.219e-05,2]
[356320799,1742257833187,-500.0,8.219e-05,2]
[356320800,1742257833197,-500.0,8.219e-05,2]
[356320801,1742257833207,-500.0,8.219e-05,2]
[356320802,1742257833217,-680.42,8.219e-05,2]
[356320803,1742257833227,-1010.33,8.219e-05,2]
[356320804,1742257833237,-500.0,8.219e-05,2]
[356320805,1742257833247,-548.55,8.219e-05,2]
[356320806,1742257833257,-211.12,8.219e-05,2]
[356320807,1742257833268,-508.99,8.219e-05,2]
[356320808,1742257833278,-500.0,8.219e-05,2]
[356320809,1742257833288,-500.0,8.219e-05,2]
[356320810,1742257833298,-500.0,8.219e-05,2]
[356320811,1742257833307,-500.0,8.219e-05,2]
[356320812,1742257833317,-500.0,8.219e-05,2]
[356320813,1742257833326,-500.0,8.219e-05,2]
[356320814,1742257833336,-500.0,8.219e-05,2]
[356320815,1742257833347,-500.0,8.219e-05,2]
[356320816,1742257833356,-500.0,8.219e-05,2]
[356320817,1742257833365,-500.0,8.219e-05,2]
[356320818,1742257833375,-500.0,8.219e-05,2]
[356320819,1742257833385,-500.0,8.219e-05,2]
[356320820,1742257833394,-500.0,8.219e-05,2]
[356320821,1742257833404,-500.0,8.219e-05,2]
[356320822,1742257833414,-500.0,8.219e-05,2]
[356320823,1742257833424,-500.0,8.219e-05,2]
[356320824,1742257833433,-500.0,8.219e-05,2]
[356320825,1742257833443,-500.0,8.219e-05,2]
[356320826,1742257833454,-500.0,8.219e-05,2]
[356320827,1742257833464,-500.0,8.219e-05,2]
[356320828,1742257833474,-500.0,8.219e-05,2]
[356320829,1742257833485,-500.0,8.219e-05,2]
[356320830,1742257833495,-500.0,8.219e-05,2]
[356320831,1742257833505,-500.0,8.219e-05,2]
[356320832,1742257833515,-500.0,8.219e-05,2]
[356320833,1742257833525,-500.0,8.219e-05,2]
[356320834,1742257833535,-500.0,8.219e-05,2]
[356320835,1742257833544,-500.0,8.219e-05,2]
[356320836,1742257833555,-536.48,8.219e-05,2]
[356320837,1742257833565,-500.0,8.219e-05,2]
[356320838,1742257833574,-500.0,8.219e-05,2]
[356320839,1742257833584,-500.0,8.219e-05,2]
[356320840,1742257833594,-500.0,8.219e-05,2]
[356320841,1742257833604,-500.0,8.219e-05,2]
[356320842,1742257833614,-500.0,8.219e-05,2]
[356320843,1742257833624,-500.0,8.219e-05,2]
[356320844,1742257833634,-575.55,8.219e-05,2]
[356320845,1742257833643,-500.0,8.219e-05,2]
[356320846,1742257833653,-500.0,8.219e-05,2]
[356320847,1742257833664,-507.77971639,8.219e-05,2]
[356320848,1742257833675,-500.0,8.219e-05,2]
[356320849,1742257833685,-3231.01,8.219e-05,2]
[356320850,1742257833694,-500.0,8.219e-05,2]
[356320851,1742257833704,-500.0,8.219e-05,2]
[356320852,1742257833714,-1783.66,8.219e-05,2]
[356320853,1742257833724,-500.0,8.219e-05,2]
[356320854,1742257833735,-1966.55,8.219e-05,2]
[356320855,1742257833744,-500.0,8.219e-05,2]
[356320856,1742257833754,-500.0,8.219e-05,2]
[356320857,1742257833764,-911.4,8.219e-05,2]
[356320858,1742257833774,-500.0,8.219e-05,2]
[356320859,1742257833784,-500.0,8.219e-05,2]
[356320860,1742257833794,-92573.3,8.219e-05,2]
[356320861,1742257833803,-500.0,8.219e-05,2]
[356320862,1742257833814,-500.0,8.219e-05,2]
[356320863,1742257833824,-990.89,8.219e-05,2]
[356320864,1742257833833,-2270.42,8.219e-05,2]
[356320865,1742257833844,-500.0,8.219e-05,2]
[356320866,1742257833853,-500.0,8.219e-05,2]
[356320867,1742257833863,-1190.75,8.219e-05,2]
[356320868,1742257833873,-500.0,8.219e-05,2]
[356320869,1742257833888,-500.0,8.219e-05,2]
[356320870,1742257833898,-622.03,8.219e-05,2]
[356320871,1742257833907,-500.0,8.219e-05,2]
[356320872,1742257833916,-3128.22,8.219e-05,2]
[356320873,1742257833926,-500.0,8.219e-05,2]
[356320874,1742257833935,-660.76,8.219e-05,2]
[356320875,1742257833944,-5746.5,8.219e-05,2]
[356320876,1742257833954,-5362.91,8.219e-05,2]
[356320877,1742257833963,-500.0,8.219e-05,2]
[356320878,1742257833973,-500.0,8.219e-05,2]
[356320879,1742257833982,-461.24587133,8.219e-05,2]
[356320900,1742257838012,-90.21412867,8.219e-05,2]
[356320901,1742257838027,-500.0,8.219e-05,2]
[356320902,1742257838038,-1902.86849148,8.219e-05,2]
[356320903,1742257838125,-636.33150852,8.219e-05,2]
[356320904,1742257838135,-500.0,8.219e-05,2]
[356320905,1742257838144,-500.0,8.219e-05,2]
[356320906,1742257838154,-500.0,8.219e-05,2]
[356320907,1742257838165,-500.0,8.219e-05,2]
[356320908,1742257838174,-1100.94,8.219e-05,2]
[356320909,1742257838183,-4652.75645201,8.219e-05,2]
[356320910,1742257838195,-1736.82572858,8.219e-05,2]
[356320973,1742257846270,-1328.37781941,8.219e-05,2]
[356320974,1742257846279,-500.0,8.219e-05,2]
[356320975,1742257846289,-1158.12218057,8.219e-05,2]
[356320976,1742257846300,-256.85781943,8.219e-05,2]
[356320977,1742257846310,-518.99,8.219e-05,2]
[356320978,1742257846319,-1485.44,8.219e-05,2]
[356320979,1742257846328,-500.0,8.219e-05,2]
[356320980,1742257846338,-500.0,8.219e-05,2]
[356320981,1742257846347,-993.68,8.219e-05,2]
[356320982,1742257846356,-500.0,8.219e-05,2]
[356320983,1742257846366,-7015.59,8.219e-05,2]
[356320984,1742257846376,-500.0,8.219e-05,2]
[356320985,1742257846385,-8051.11,8.219e-05,2]
[356320986,1742257846394,-500.0,8.219e-05,2]
[356320987,1742257846403,-500.0,8.219e-05,2]
[356320988,1742257846413,-500.0,8.219e-05,2]
[356320989,1742257846422,-508.55,8.219e-05,2]
[356320990,1742257846431,-500.0,8.219e-05,2]
[356320991,1742257846440,-1177.74,8.219e-05,2]
[356320992,1742257846449,-532.65,8.219e-05,2]
[356320993,1742257846458,-500.0,8.219e-05,2]
[356320994,1742257846467,-500.0,8.219e-05,2]
[356320995,1742257846476,-500.0,8.219e-05,2]
[356320996,1742257846486,-500.0,8.219e-05,2]
[356320997,1742257846495,-500.0,8.219e-05,2]
[356320998,1742257846504,-661.73,8.219e-05,2]
[356320999,1742257846513,-500.0,8.219e-05,2]
[356321000,1742257846522,-500.0,8.219e-05,2]
[356321001,1742257846531,-500.0,8.219e-05,2]
[356321002,1742257846541,-934.19,8.219e-05,2]
[356321003,1742257846550,-337.15,8.219e-05,2]
[356321004,1742257846560,-772.55,8.219e-05,2]
[356321005,1742257846570,-583.08,8.219e-05,2]
[356321006,1742257846580,-500.0,8.219e-05,2]
[356321007,1742257846589,-765.7,8.219e-05,2]
[356321008,1742257846599,-500.0,8.219e-05,2]
[356321009,1742257846609,-5846.96,8.219e-05,2]
[356321010,1742257846619,-836.84,8.219e-05,2]
[356321011,1742257846629,-439.64046576,8.219e-05,2]
[356321012,1742257846638,-1604.64,8.219e-05,2]
[356321013,1742257846647,-565.43,8.219e-05,2]
[356321014,1742257846656,-910.81,8.219e-05,2]
[356321015,1742257846665,-3703.35,8.219e-05,2]
[356321016,1742257846675,-500.0,8.219e-05,2]
[356321017,1742257846861,-500.0,8.219e-05,2]
[356321018,1742257846872,-1970.04,8.219e-05,2]
[356321019,1742257846882,-500.0,8.219e-05,2]
[356321020,1742257846891,-3636.95,8.219e-05,2]
[356321021,1742257846900,-468.51485725,8.219e-05,2]
[356321075,1742259032448,-150.0,7.956e-05,2]
[356321076,1742259032460,-150.0,7.956e-05,2]
[356321077,1742259032470,-293.17395059,7.956e-05,2]
[356321078,1742259032481,-300.0,8.118e-05,2]
[356321079,1742259032491,-2276.28701434,8.119e-05,2]
[356321080,1742259032502,-445.00743001,8.119e-05,2]
[356321081,1742259032518,-21644.29136707,8.119e-05,2]
[356321082,1742259032539,-482.15756275,8.218e-05,2]
[356321083,1742259032551,-500.0,8.218e-05,2]
[356321084,1742259032561,-306.1867153,8.218e-05,2]
[356321085,1742259032571,-500.0,8.219e-05,2]
[356321086,1742259032581,-500.0,8.219e-05,2]
[356321087,1742259032591,-500.0,8.219e-05,2]
[356321088,1742259032603,-500.0,8.219e-05,2]
[356321089,1742259032613,-500.0,8.219e-05,2]
[356321090,1742259032623,-500.0,8.219e-05,2]
[356321091,1742259032633,-500.0,8.219e-05,2]
[356321092,1742259032643,-500.0,8.219e-05,2]
[356321093,1742259032653,-500.0,8.219e-05,2]
[356321094,1742259032664,-504.78,8.219e-05,2]
[356321095,1742259032675,-500.0,8.219e-05,2]
[356321096,1742259032684,-500.0,8.219e-05,2]
[356321097,1742259032694,-500.0,8.219e-05,2]
[356321098,1742259032704,-968.24,8.219e-05,2]
[356321099,1742259032714,-500.0,8.219e-05,2]
[356321100,1742259032723,-500.0,8.219e-05,2]
[356321101,1742259032734,-500.0,8.219e-05,2]
[356321102,1742259032743,-406.32789241,8.219e-05,2]
[356321103,1742259032753,-500.0,8.219e-05,2]
[356321104,1742259032762,-500.0,8.219e-05,2]
[356321105,1742259032771,-500.0,8.219e-05,2]
[356321106,1742259032781,-500.0,8.219e-05,2]
[356321107,1742259032790,-500.0,8.219e-05,2]
[356321108,1742259032800,-500.0,8.219e-05,2]
[356321109,1742259032810,-500.0,8.219e-05,2]
[356321110,1742259032819,-500.0,8.219e-05,2]
[356321111,1742259032829,-500.0,8.219e-05,2]
[356321112,1742259032840,-500.0,8.219e-05,2]
[356321113,1742259032851,-500.0,8.219e-05,2]
[356321114,1742259032862,-500.0,8.219e-05,2]
[356321115,1742259032871,-500.0,8.219e-05,2]
[356321116,1742259032881,-500.0,8.219e-05,2]
[356321117,1742259032890,-500.0,8.219e-05,2]
[356321118,1742259032901,-500.0,8.219e-05,2]
[356321119,1742259032910,-500.0,8.219e-05,2]
[356321120,1742259032921,-500.0,8.219e-05,2]
[356321121,1742259032930,-812.08,8.219e-05,2]
[356321122,1742259032940,-500.0,8.219e-05,2]
[356321123,1742259032949,-500.0,8.219e-05,2]
[356321124,1742259032959,-500.0,8.219e-05,2]
[356321125,1742259032969,-500.0,8.219e-05,2]
[356321126,1742259032979,-500.0,8.219e-05,2]
[356321127,1742259032989,-500.0,8.219e-05,2]
[356321128,1742259032998,-500.0,8.219e-05,2]
[356321129,1742259033009,-500.0,8.219e-05,2]
[356321130,1742259033019,-500.0,8.219e-05,2]
[356321131,1742259033030,-500.0,8.219e-05,2]
[356321132,1742259033040,-500.0,8.219e-05,2]
[356321133,1742259033049,-500.0,8.219e-05,2]
[356321134,1742259033059,-479.35209877,8.219e-05,2]
[356321135,1742259033069,-747.7,8.219e-05,2]
[356321136,1742259033330,-500.0,8.219e-05,2]
[356321137,1742259033340,-500.0,8.219e-05,2]
[356321138,1742259033350,-500.0,8.219e-05,2]
[356321139,1742259033359,-507.49,8.219e-05,2]
[356321140,1742259033370,-867.64,8.219e-05,2]
[356321141,1742259033382,-500.0,8.219e-05,2]
[356321142,1742259033392,-500.0,8.219e-05,2]
[356321143,1742259033401,-500.0,8.219e-05,2]
[356321144,1742259033411,-500.0,8.219e-05,2]
[356321145,1742259033421,-500.0,8.219e-05,2]
[356321146,1742259033430,-500.0,8.219e-05,2]
[356321147,1742259033440,-500.0,8.219e-05,2]
[356321148,1742259033449,-500.0,8.219e-05,2]
[356321149,1742259033459,-500.0,8.219e-05,2]
[356321150,1742259033469,-500.0,8.219e-05,2]
[356321151,1742259033479,-500.0,8.219e-05,2]
[356321152,1742259033489,-500.0,8.219e-05,2]
[356321153,1742259033499,-500.0,8.219e-05,2]
[356321154,1742259033509,-500.0,8.219e-05,2]
[356321155,1742259033521,-546.53,8.219e-05,2]
[356321156,1742259033531,-500.0,8.219e-05,2]
[356321157,1742259033541,-508.61,8.219e-05,2]
[356321158,1742259033551,-672.9,8.219e-05,2]
[356321159,1742259033561,-500.0,8.219e-05,2]
[356321160,1742259033571,-500.0,8.219e-05,2]
[356321161,1742259033581,-500.0,8.219e-05,2]
[356321162,1742259033591,-500.0,8.219e-05,2]
[356321163,1742259033600,-500.0,8.219e-05,2]
[356321164,1742259033610,-500.0,8.219e-05,2]
[356321165,1742259033620,-500.0,8.219e-05,2]
[356321166,1742259033629,-500.0,8.219e-05,2]
[356321167,1742259033639,-500.0,8.219e-05,2]
[356321168,1742259033650,-500.0,8.219e-05,2]
[356321169,1742259033661,-500.0,8.219e-05,2]
[356321170,1742259033670,-530.21,8.219e-05,2]
[356321171,1742259033680,-500.0,8.219e-05,2]
[356321172,1742259033690,-500.0,8.219e-05,2]
[356321173,1742259033699,-500.0,8.219e-05,2]
[356321174,1742259033709,-534.96,8.219e-05,2]
[356321175,1742259033719,-500.0,8.219e-05,2]
[356321176,1742259033728,-500.0,8.219e-05,2]
[356321177,1742259033738,-500.0,8.219e-05,2]
[356321178,1742259033748,-500.0,8.219e-05,2]
[356321179,1742259033757,-500.0,8.219e-05,2]
[356321180,1742259033768,-500.0,8.219e-05,2]
[356321181,1742259033778,-500.0,8.219e-05,2]
[356321182,1742259033788,-500.0,8.219e-05,2]
[356321183,1742259033798,-500.0,8.219e-05,2]
[356321184,1742259033808,-500.0,8.219e-05,2]
[356321185,1742259033817,-572.4,8.219e-05,2]
[356321186,1742259033827,-500.0,8.219e-05,2]
[356321187,1742259033838,-500.0,8.219e-05,2]
[356321188,1742259033848,-500.0,8.219e-05,2]
[356321189,1742259033859,-500.0,8.219e-05,2]
[356321190,1742259033869,-3170.03,8.219e-05,2]
[356321191,1742259033879,-500.0,8.219e-05,2]
[356321192,1742259033888,-1746.39,8.219e-05,2]
[356321193,1742259033899,-662.77,8.219e-05,2]
[356321194,1742259033908,-500.0,8.219e-05,2]
[356321195,1742259033918,-894.26,8.219e-05,2]
[356321196,1742259033928,-90699.32,8.219e-05,2]
[356321197,1742259033938,-500.0,8.219e-05,2]
[356321198,1742259033947,-500.0,8.219e-05,2]
[356321199,1742259033957,-2237.99,8.219e-05,2]
[356321200,1742259033967,-970.44,8.219e-05,2]
[356321201,1742259033977,-500.0,8.219e-05,2]
[356321202,1742259033987,-178.8379394,8.219e-05,2]
[356321203,1742259033997,-506.49,8.219e-05,2]
[356321204,1742259034008,-500.0,8.219e-05,2]
[356321205,1742259034019,-1161.97,8.219e-05,2]
[356321206,1742259034028,-616.95,8.219e-05,2]
[356321207,1742259034038,-500.0,8.219e-05,2]
[356321208,1742259034048,-3056.27,8.219e-05,2]
[356321209,1742259034059,-5603.27,8.219e-05,2]
[356321210,1742259034069,-654.06,8.219e-05,2]
[356321211,1742259034079,-5255.39,8.219e-05,2]
[356321212,1742259034090,-500.0,8.219e-05,2]
[356321213,1742259034099,-443.5539569,8.219e-05,2]
[356321214,1742259034109,-500.0,8.219e-05,2]
[356321215,1742259034119,-500.0,8.219e-05,2]
[356321216,1742259034129,-2502.09,8.219e-05,2]
[356321217,1742259034139,-500.0,8.219e-05,2]
[356321218,1742259034148,-500.0,8.219e-05,2]
[356321219,1742259034158,-500.0,8.219e-05,2]
[356321220,1742259034168,-500.0,8.219e-05,2]
[356321221,1742259034178,-528.48,8.219e-05,2]
[356321222,1742259034188,-1085.36,8.219e-05,2]
[356321223,1742259034198,-500.0,8.219e-05,2]
[356321224,1742259034207,-500.0,8.219e-05,2]
[356321225,1742259034217,-1387.97,8.219e-05,2]
[356321226,1742259034227,-500.0,8.219e-05,2]
[356321227,1742259034236,-7572.47,8.219e-05,2]
[356321228,1742259034245,-974.08,8.219e-05,2]
[356321229,1742259034255,-500.0,8.219e-05,2]
[356321230,1742259034265,-500.0,8.219e-05,2]
[356321231,1742259034275,-500.0,8.219e-05,2]
[356321232,1742259034285,-500.0,8.219e-05,2]
[356321233,1742259034295,-500.0,8.219e-05,2]
[356321234,1742259034305,-1444.38,8.219e-05,2]
[356321235,1742259034314,-500.0,8.219e-05,2]
[356321236,1742259034323,-500.0,8.219e-05,2]
[356321237,1742259034333,-508.19,8.219e-05,2]
[356321238,1742259034342,-500.0,8.219e-05,2]
[356321239,1742259034353,-6859.23,8.219e-05,2]
[356321240,1742259034363,-500.0,8.219e-05,2]
[356321241,1742259034377,-500.0,8.219e-05,2]
[356321242,1742259034387,-500.0,8.219e-05,2]
[356321243,1742259034396,-920.41,8.219e-05,2]
[356321244,1742259034406,-500.0,8.219e-05,2]
[356321245,1742259034416,-305.89,8.219e-05,2]
[356321246,1742259034426,-1163.37,8.219e-05,2]
[356321247,1742259034441,-761.19,8.219e-05,2]
[356321248,1742259034457,-500.0,8.219e-05,2]
[356321249,1742259034467,-510.45,8.219e-05,2]
[356321250,1742259034477,-655.44,8.219e-05,2]
[356321251,1742259034488,-823.83,8.219e-05,2]
[356321252,1742259034498,-8004.38,8.219e-05,2]
[356321253,1742259034508,-754.63,8.219e-05,2]
[356321254,1742259034518,-897.22,8.219e-05,2]
[356321255,1742259034528,-579.62,8.219e-05,2]
[356321256,1742259034538,-5762.74,8.219e-05,2]
[356321257,1742259034548,-1574.56,8.219e-05,2]
[356321258,1742259034558,-500.0,8.219e-05,2]
[356321259,1742259034567,-542.82,8.219e-05,2]
[356321260,1742259034577,-500.0,8.219e-05,2]
[356321261,1742259034587,-3543.63,8.219e-05,2]
[356321262,1742259034597,-500.0,8.219e-05,2]
[356321263,1742259034609,-615.32,8.219e-05,2]
[356321264,1742259034619,-1899.44,8.219e-05,2]
[356321265,1742259034629,-3628.52,8.219e-05,2]
[356321266,1742259034639,-500.0,8.219e-05,2]
[356321267,1742259034649,-3688.95,8.219e-05,2]
[356321268,1742259034659,-384.78870974,8.219e-05,2]
[356321269,1742259034668,-500.0,8.219e-05,2]
[356321270,1742259034678,-500.0,8.219e-05,2]
[356321271,1742259034687,-500.0,8.219e-05,2]
[356321272,1742259034697,-195.0,8.219e-05,2]
[356321273,1742259034706,-724.43,8.219e-05,2]
[356321274,1742259034716,-1727.64,8.219e-05,2]
[356321275,1742259034725,-195.0,8.219e-05,2]
[356321276,1742259034735,-634.97,8.219e-05,2]
[356321277,1742259034744,-500.0,8.219e-05,2]
[356321278,1742259034754,-1927.98,8.219e-05,2]
[356321279,1742259034764,-302.0,8.219e-05,2]
[356321280,1742259034774,-342.9601889,8.238e-05,2]
[356321281,1742259034785,-178.83793938,8.356e-05,2]
[356321282,1742259034795,-155.066028,8.402e-05,2]
[356321283,1742259034805,-500.0,8.473e-05,2]
[356321284,1742259034815,-504.2644824,8.473e-05,2]
[356321285,1742259034824,-500.0,8.473e-05,2]
[356321286,1742259034834,-500.0,8.473e-05,2]
[356321287,1742259034844,-500.0,8.473e-05,2]
[356321288,1742259034855,-187.0368658,8.48e-05,2]
[356321289,1742259034865,-186.9825615,8.48e-05,2]
[356321290,1742259034874,-187.0368658,8.49e-05,2]
[356321291,1742259034884,-151.0,8.492e-05,2]
[356321292,1742259034894,-500.0,8.493e-05,2]
[356321293,1742259034904,-968.24,8.493e-05,2]
[356321294,1742259034914,-500.0,8.493e-05,2]
[356321295,1742259034924,-500.0,8.493e-05,2]
[356321296,1742259034933,-500.0,8.493e-05,2]
[356321297,1742259034944,-500.0,8.493e-05,2]
[356321298,1742259034954,-500.0,8.493e-05,2]
[356321299,1742259034963,-500.0,8.493e-05,2]
[356321300,1742259034973,-500.0,8.493e-05,2]
[356321301,1742259034983,-500.0,8.493e-05,2]
[356321302,1742259034993,-190.44731991,8.493e-05,2]
[356321351,1742259046569,-500.0,8.219e-05,2]
[356321352,1742259046579,-500.0,8.219e-05,2]
[356321353,1742259046588,-500.0,8.219e-05,2]
[356321354,1742259046598,-500.0,8.219e-05,2]
[356321355,1742259046608,-309.55268009,8.493e-05,2]
[356321356,1742259046618,-500.0,8.493e-05,2]
[356321357,1742259046627,-500.0,8.493e-05,2]
[356321358,1742259046637,-500.0,8.493e-05,2]
[356321359,1742259046647,-500.0,8.493e-05,2]
[356321360,1742259046656,-500.0,8.493e-05,2]
[356321361,1742259046665,-500.0,8.493e-05,2]
[356321362,1742259046675,-480.6,8.493e-05,2]
[356321363,1742259046684,-500.0,8.493e-05,2]
[356321364,1742259046694,-500.0,8.493e-05,2]
[356321365,1742259046704,-747.7,8.493e-05,2]
[356321366,1742259046713,-507.49,8.493e-05,2]
[356321367,1742259046723,-867.64,8.493e-05,2]
[356321368,1742259046733,-500.0,8.493e-05,2]
[356321369,1742259046743,-500.0,8.493e-05,2]
[356321370,1742259046752,-537.55854723,8.493e-05,2]
[356321371,1742259046762,-500.0,8.493e-05,2]
[356321372,1742259046771,-500.0,8.493e-05,2]
[356321373,1742259046781,-500.0,8.493e-05,2]
[356321374,1742259046791,-500.0,8.493e-05,2]
[356321375,1742259046800,-500.0,8.493e-05,2]
[356321376,1742259046810,-500.0,8.493e-05,2]
[356321377,1742259046819,-546.53,8.493e-05,2]
[356321378,1742259046828,-500.0,8.493e-05,2]
[356321379,1742259046837,-508.61,8.493e-05,2]
[356321380,1742259046847,-672.9,8.493e-05,2]
[356321381,1742259046856,-500.0,8.493e-05,2]
[356321382,1742259046866,-550.86,8.493e-05,2]
[356321383,1742259046875,-500.0,8.493e-05,2]
[356321384,1742259046884,-500.0,8.493e-05,2]
[356321385,1742259046893,-500.0,8.493e-05,2]
[356321386,1742259046903,-500.0,8.493e-05,2]
[356321387,1742259046912,-500.0,8.493e-05,2]
[356321388,1742259046922,-500.0,8.493e-05,2]
[356321389,1742259046931,-500.0,8.493e-05,2]
[356321390,1742259046940,-534.96,8.493e-05,2]
[356321391,1742259046949,-500.0,8.493e-05,2]
[356321392,1742259046959,-500.0,8.493e-05,2]
[356321393,1742259046968,-500.0,8.493e-05,2]
[356321394,1742259046977,-500.0,8.493e-05,2]
[356321395,1742259046987,-351.96,8.493e-05,2]
[356321396,1742259046996,-583.42,8.493e-05,2]
[356321397,1742259047005,-572.4,8.493e-05,2]
[356321398,1742259047014,-500.0,8.493e-05,2]
[356321399,1742259047025,-500.0,8.493e-05,2]
[356321400,1742259047037,-3170.03,8.493e-05,2]